Cogmind - Beta 13 X1 @@@ ROGUE MODE // 2023.07.15 @ 23:14:24 Player: biogoob Result: Destroyed by YI-UF0 with YI-UF0's Doublenader Performance ------------- Evolutions (0) 0 Regions Visited (2) 400 Robots Destroyed (8) 40 Value Destroyed (196) 196 Prototype IDs (0) 0 Alien Tech Used (0) 0 Bonus (0) 0 TOTAL SCORE: 636 Bonus ------- None Cogmind --------- Core Integrity 0/250 Matter 260/300 Energy 61/250 System Corruption 3% Temperature Cool (40) Movement Walking (190) Ox1 Location -10/Mines Parts ------- > --- POWER (1) -------- Ion Engine > --- PROPULSION (2) --- Aluminum Leg Aluminum Leg > --- UTILITY (2) ------ Large Storage Unit > --- WEAPON (2) ------- Beam Cannon > --- INVENTORY (15) --- Aluminum Leg Aluminum Leg Aluminum Leg Structural Scanner Targeting Computer Propulsion Shielding EM Pulse Gun Medium Laser Particle Gun Grenade Launcher Peak State ------------ > --- POWER ------------ Light Ion Engine > --- PROPULSION ------- Aluminum Leg Aluminum Leg > --- UTILITY ---------- Heat Sink Large Storage Unit > --- WEAPON ----------- Medium Laser Medium Laser > --- INVENTORY -------- Ion Engine Aluminum Leg Aluminum Leg Targeting Computer EM Pulse Gun Medium Laser Particle Gun Beam Cannon Grenade Launcher [Rating: 8] Favorites ----------- Power Light Ion Engine Engine Light Ion Engine Propulsion Aluminum Leg Leg Aluminum Leg Utility Heat Sink Device Heat Sink Storage Small Storage Unit Processor Signal Interpreter Weapon Medium Laser Energy Gun Medium Laser Energy Cannon Beam Cannon Ballistic Gun Light Assault Rifle Launcher Grenade Launcher Build | -11 -10 -10 ------- Run | Jun Mat Min Slots Evolved . | . . . Power . | . . . Propulsion . | . . . Utility . | . . . Weapon . | . . . Parts Attached 14 | . 7 7 Power 2 | . . 2 Engine 2 | . . 2 Core . | . . . Reactor . | . . . Propulsion 4 | . 2 2 Treads . | . . . Leg 4 | . 2 2 Wheel . | . . . Hover . | . . . Flight . | . . . Utility 3 | . 3 . Device 1 | . 1 . Storage 1 | . 1 . Processor 1 | . 1 . Hackware . | . . . Protection . | . . . Artifact . | . . . Weapon 5 | . 2 3 Energy Gun 3 | . 2 1 Energy Cannon 1 | . . 1 Ballistic Gun . | . . . Ballistic Cannon . | . . . Launcher 1 | . . 1 Special Weapon . | . . . Impact Weapon . | . . . Slashing Weapon . | . . . Piercing Weapon . | . . . Special Melee Weapon . | . . . Unidentified Prototypes . | . . . Parts Lost 7 | . . 7 Power 2 | . . 2 Propulsion 2 | . . 2 Utility 1 | . . 1 Weapon 2 | . . 2 Highest Loss Streak 6 | . . 6 To Critical Strikes . | . . . Average Slot Usage (%) 99 | . 99 96 Engine 13 | . 14 12 Leg 27 | . 28 27 Device 11 | . 11 13 Storage 14 | . 14 14 Processor 2 | . 2 . Energy Gun 25 | . 24 27 Ballistic Gun 2 | . 3 . Naked Turns . | . . . Heaviest Build 29 | 11 28 29 Greatest Support 20 | 20 20 20 Greatest Overweight (x) 1 | . 1 1 Average Overweight (x) . | . . 1 Largest Inventory Capacity 15 | . 15 15 Average Capacity 11 | . 10 15 Most Carried 14 | . 14 14 Average Carried 9 | . 8 13 Final Capacity 15 | 8 15 15 Final Carried 14 | 6 14 10 Class Distribution -------------------- 100% | Mutant Dominant Class ---------------- Mutant | -10/Materials Mutant | -10/Mines Resources | -11 -10 -10 ----------- Run | Jun Mat Min Matter Collected 337 | 200 85 52 Remotely . | . . . Salvage Created 189 | . 91 98 Parts 17 | . 3 14 Haulers Intercepted . | . . . Recyclers Shooed . | . . . Parts Field Recycled . | . . . Retrieved Matter . | . . . Parts Self-Destructed . | . . . Prevented . | . . . Kills | -11 -10 -10 ------- Run | Jun Mat Min Combat Hostiles Destroyed 6 | . 2 4 Guns 4 | . 1 3 AOE 1 | . . 1 Classes Destroyed 3 | . 1 2 Tunneler 2 | . . 2 Swarmer 2 | . . 2 Grunt 4 | . 2 2 Best Kill Streak 4 | . 2 4 Combat Bots Only 2 | . 2 2 Max Kills in Single Turn 3 | . 1 3 Gunslinging . | . . . Exploded 1 | . . 1 Melee . | . . . Uniques/NPCs Destroyed . | . . . Combat | -11 -10 -10 -------- Run | Jun Mat Min Damage Taken 959 | . 108 851 Core 287 | . 26 261 Absorbed by Shields . | . . . Core Remaining (%) 100 | 100 . . Volleys Fired 26 | . 12 14 Largest 2 | . 2 2 Hottest 100 | . 100 100 Shots Fired 47 | . 24 23 Gun 42 | . 24 18 Cannon 2 | . . 2 Launcher 3 | . . 3 Special . | . . . Kinetic . | . . . Thermal 44 | . 24 20 Explosive 3 | . . 3 Electromagnetic . | . . . Robot Hit Streak 7 | . 4 7 Robot Miss Streak 5 | . 5 2 Penetration Max . | . . . Secondary Targets . | . . . Shots Hit Robots 28 | . 12 16 Core Hits 13 | . 4 9 Critical Kills . | . . . Critical Parts Destroyed . | . . . Critical Strikes 3 | . 1 2 Burn 3 | . 1 2 Melee Attacks . | . . . Impact . | . . . Slashing . | . . . Piercing . | . . . Sneak Attacks . | . . . Combat Hostiles . | . . . Follow-up Attacks . | . . . Damage Inflicted 502 | . 150 352 Guns 307 | . 150 157 Cannons 17 | . . 17 Explosions 178 | . . 178 Melee . | . . . Ramming . | . . . Kinetic . | . . . Thermal 324 | . 150 174 Explosive 178 | . . 178 Electromagnetic . | . . . Impact . | . . . Slashing . | . . . Piercing . | . . . Highest Corruption 3 | . 3 3 Average Corruption 2 | . 2 3 Corruption Purged . | . . . Corruption Blocked . | . . . Effects 13 | . 11 2 Message Errors 3 | . 3 . Matter Fused 2 | . 2 . Heat Flow Errors 2 | . 2 . Energy Discharges 2 | . 2 . Data Loss (minor) 2 | . 2 . Data Loss (major) 2 | . . 2 Overload Shots . | . . . Overflow Damage . | . . . Projectiles . | . . . Explosions . | . . . Melee . | . . . Knockbacks . | . . . Impact . | . . . Kinetic . | . . . Secondary . | . . . Self-Inflicted Damage 23 | . . 23 Shots 2 | . . 2 Rammed . | . . . Targets Rammed . | . . . Kicked . | . . . Crushed . | . . . Highest Temperature 252 | . 252 54 Average Temperature 69 | . 91 25 Received Heat Transfer 147 | . 63 84 Siege Activations . | . . . Robots Corrupted . | . . . Combat Hostiles . | . . . Parts Fried . | . . . Impact Corruptions . | . . . Robots Melted 1 | . 1 . Combat Hostiles 1 | . 1 . Parts Melted 3 | . 2 1 Heat Transferred 1147 | . 518 629 Parts Sabotaged . | . . . Parts Stolen . | . . . Parts Stripped . | . . . Power Chain Reactions . | . . . Missiles Intercepted . | . . . Alert | -11 -10 -10 ------- Run | Jun Mat Min Peak Influence 105 | . 82 105 Initial . | . . . Average 31 | . 20 74 Maximum Alert Level . | . . . Low Security (%) 100 | . 100 100 Level 1 . | . . . Level 2 . | . . . Level 3 . | . . . Level 4 . | . . . Level 5 . | . . . High Security . | . . . Max Security . | . . . Squads Dispatched 1 | . 1 . Investigation 1 | . 1 . Extermination . | . . . Reinforcement . | . . . Assault . | . . . Garrison . | . . . Intercept . | . . . Searches Triggered . | . . . Construction Impeded . | . . . Haulers Reinforced . | . . . Active Scanning Responses . | . . . Cargo Convoy Interrupts . | . . . Stealth | -11 -10 -10 --------- Run | Jun Mat Min Distress Signals 1 | . 1 . Communications Jammed . | . . . Distress Signals . | . . . Times Spotted 10 | . 4 6 Peak Tracking Total 3 | . 2 3 Tactical Retreats . | . . . Traps | -11 -10 -10 ------- Run | Jun Mat Min Traps Triggered 2 | . 2 . Indirectly . | . . . Trap Hack Attempts . | . . . Triggered . | . . . Disarmed . | . . . Reprogrammed . | . . . Reused . | . . . Traps Extracted . | . . . Installed . | . . . Triggered . | . . . Machines | -11 -10 -10 ---------- Run | Jun Mat Min Machines Disabled . | . . . Max in Single Turn . | . . . Machines Repaired . | . . . Machines Sabotaged . | . . . Overloaded Fab Kills . | . . . Hacking | -11 -10 -10 --------- Run | Jun Mat Min Machines Accessed 5 | . 5 . Terminals 5 | . 5 . Fabricators . | . . . Repair Stations . | . . . Recycling Units . | . . . Scanalyzers . | . . . Garrison Access . | . . . Total Hacks 13 | . 13 . Successful 5 | . 5 . Failed 8 | . 8 . Catastrophic . | . . . Database Lockouts . | . . . Manual 13 | . 13 . Terminals 13 | . 13 . Fabricators . | . . . Repair Stations . | . . . Recycling Units . | . . . Scanalyzers . | . . . Garrison Access . | . . . Terminal Hacks 2 | . 2 . Robot Analysis 2 | . 2 . Fabricator Hacks . | . . . Repair Station Hacks . | . . . Recycling Unit Hacks . | . . . Scanalyzer . | . . . Garrison Access Hacks . | . . . Unauthorized Hacks 3 | . 3 . Terminals 3 | . 3 . Botnet 3 | . 3 . Fabricators . | . . . Repair Stations . | . . . Recycling Units . | . . . Scanalyzers . | . . . Garrison Access . | . . . Data Cores Recovered . | . . . Used . | . . . Hacking Detections 5 | . 5 . Full Trace Events . | . . . Feedback Events . | . . . Feedback Blocked . | . . . Robot Schematics Acquired . | . . . Robots Built . | . . . Authchips . | . . . Time . | . . . Total Robot Build Rating . | . . . Part Schematics Acquired . | . . . Parts Built . | . . . Authchips . | . . . Time . | . . . Total Part Build Rating . | . . . Parts Repaired . | . . . Time . | . . . Parts Recycled . | . . . Recycled Matter . | . . . Retrieved Matter . | . . . Retrieved Components . | . . . Parts Scanalyzed . | . . . Part Schematics Acquired . | . . . Parts Damaged . | . . . Bothacking | -11 -10 -10 ------------ Run | Jun Mat Min Used RIF Installer . | . . . Robots Hacked . | . . . Non-combat . | . . . Combat . | . . . Robot Hacks Applied . | . . . Relay Couplers Released . | . . . Fabnet Peak Effective % . | . . . Robots Rewired . | . . . Allies Hacked . | . . . Hacks Repelled . | . . . Allies | -11 -10 -10 -------- Run | Jun Mat Min Total Allies . | . . . Largest Group . | . . . Highest-Rated Group . | . . . Highest-Rated Ally . | . . . Total Orders . | . . . Ally Attacks . | . . . Total Damage . | . . . Kills . | . . . Allies Corrupted . | . . . Allies Melted . | . . . Intel | -11 -10 -10 ------- Run | Jun Mat Min Robot Analysis Total 2 | . 2 . Derelict Logs Recovered 1 | . . 1 Drone Launches . | . . . Drone Recoveries . | . . . Exploration | -11 -10 -10 ------------- Run | Jun Mat Min Turns Passed 768 | . 604 164 Spaces Moved 461 | 1 398 62 Core . | . . . Treads . | . . . Legs 461 | 1 398 62 Wheels . | . . . Hover . | . . . Flight . | . . . Fastest Speed 120 | 120 120 190 Average Speed 142 | 120 135 190 Slowest Speed 190 | 120 190 190 Overloaded Moves . | . . . Propulsion Burnouts . | . . . Robots Hopped . | . . . Cave-ins Triggered . | . . . Exploration Rate (%) 33 | 2 68 29 Regions Visited 2 Branch Regions 1 Pre-discovered Areas . | . . . Known Exits Taken . | . . . Unknown Exits Taken 2 | 1 1 . Scrap Searched . | . . . Spaces Dug . | . . . Terrain Destroyed 26 | . . 26 Melee . | . . . Projectile . | . . . AOE 26 | . . 26 Terrain Rammed . | . . . Walls Destroyed . | . . . Machines Disabled . | . . . Actions | -11 -10 -10 --------- Run | Jun Mat Min Total 524 | . 441 83 Wait 3 | . 3 . Move 459 | . 397 62 Hop . | . . . Pick Up 13 | . 13 . Fast Attach 3 | . 2 1 Attach 4 | . . 4 Detach 1 | . 1 . Swap 7 | . 5 2 Drop 8 | . 8 . Fire 26 | . 12 14 Melee . | . . . Ram . | . . . Kick . | . . . Crush . | . . . Escape Stasis . | . . . Rewire . | . . . Trap . | . . . Miscellaneous . | . . . Route ------- -11/Junkyard -10/Materials (discovered 2 exits: [*Mat] / [*Min]) -10/Mines (discovered 1 exit: Sub) History --------- Turn | Location | Event 1 | -11/Junkyard | Discovered new exit (range 0) 1 | -11/Junkyard | Entered Materials 286 | -10/Materials | Discovered new exit (range 5) 318 | -10/Materials | Build established: Mutant 552 | -10/Materials | Discovered new exit (range 11) 605 | -10/Materials | Entered Mines 692 | -10/Mines | Identified exit to Subcaves 749 | -10/Mines | Core integrity fell below 50% 759 | -10/Mines | Core integrity fell below 20% 769 | -10/Mines | Destroyed by YI-UF0 with YI-UF0's Doublenader Last Messages --------------- 00730_ Pulverizer disabled. 00733_ The unstable cave ceiling collapses. 00733_ K-01 Serf collects debris. 00745_ The unstable cave ceiling collapses. 00747_ K-01 Serf collects debris. 00754_ Aluminum Leg destroyed. 00754_ U-05 Engineer lays Concrete. 00756_ The unstable cave ceiling collapses. 00756_ Heat Sink destroyed. 00756_ U-05 Engineer lays Concrete. 00758_ The unstable cave ceiling collapses. 00758_ U-05 Engineer builds a Wall. 00758_ Lgt. Ion Engine destroyed. 00759_ U-05 Engineer lays Concrete. 00761_ Med. Laser destroyed. 00761_ Aluminum Leg destroyed. 00761_ U-05 Engineer builds a Wall. 00761_ U-05 Engineer lays Concrete. 00765_ The unstable cave ceiling collapses. 00765_ U-05 Engineer lays Concrete. Map ----- +----------------------------------------------------+ | ????????????????????????????????????????????????? | | ????????????????????????????????????????????????? | | ????????????????????????????????????????????????? | | ????????????????????????????????????????????????? | | ????????????????????????????????????????????????? | | ????????????????????????????????????????????????? | | ????????????????????????????????????????????????? | | ????????????????????????????????????????????????? | | ????????????????????????????????????????????????? | | ????????????????????????????????????????????????? | | ????????????????????????????????????????????????? | | ????????????????????????????????????????????????? | | ????????????????????????????????????????????????? | | ????????????????????????????????????????????????# | | ???????????????????????????????????????????????# | | ??????????????????????????????????????????????? | | ??????????????????????????????????????????????? | | ??????????????????????????###??###????????????? | | ???????????????????????### ### ######????????# | | ?????????????# ????????# #####????# | | ???????????# # * ???#### k #????# | | ??????????## ### #??### | | ?????????? u #??# | | ????????????## " " " #### | | ???????????# u "" " "" [ = | | ????????????# @ """ """" % | | ???????????# #### | | ???????????## " """" #??# | | ????????????##### ## " """" #??#### | | ????????????????#??# # " """" #?????# | | ??????????????????# *! #???### | | ?????????????????# g #???# # | | ????????????????# # # #####??## | | ???????????????# ???????# | | ??????????????? ??????## # | | ?????????????? # ## ????????# # | | ????????????? ##### ????????### | | ??????????????? #????? # ????????????# | | ????????????????? ??????######?????????????## | | ???????????????????????????????????????????## | | ???????????????????????????????????????????# | | ???????????????????????????????????????????# # | | ???????????????????????????????????????????## ## | | ????????????????????????????????????????????####? | | ????????????????????????????????????????????????? | | ????????????????????????????????????????????????? | | ????????????????????????????????????????????????? | | ????????????????????????????????????????????????? | | ????????????????????????????????????????????????? | | ????????????????????????????????????????????????? | +----------------------------------------------------+ Best States ------------- Heat Dissipation 35 Energy Generation 10 Energy Capacity 125 Matter Stores 300 Matter Capacity 300 Sight Range 16 Terrain Scan Density 10 Evasion (%) 55 Item Schematics ----------------- None Robot Schematics ------------------ None Fabricated ------------ Nothing Alien Tech Used ----------------- None Achievements -------------- None Challenges ------------ None Game ------ Seed BehemothInsulationDetector Manual? 0 Play Time 00:08:14 Cumulative 144.1 hours Start 2023.07.15 @ 22:16:32 End 2023.07.15 @ 23:14:24 Sessions 3 Manual Loads 0 Difficulty Rogue Special Mode None Game No. 163 Rogue 140 Adventurer 19 Explorer 4 Win Type - Total 1 Types 0/0/1/0/0/0/0/0/0 Lore% 52 Gallery% 60 Achievement% 49 Wizard Run 0 Options --------- ASCII 1 Keyboard 1 Movement Vi Keybinds 0 Fullscreen 1 Font 18/Terminus Map View 76x50 Tactical HUD 1 Map Filters NONE Filters SATURATION(80) Steam 1 RUN: 26e38c6b-8654-42c8-961b-09292a3857d2